bitfinex/quotes_SOLUSD_20220210
["timestamp","ask_amount","ask_price","bid_price","bid_amount"]
[1644500049728,2.23122154,109.83,109.6,37.55229281]
[1644500049929,2.23122154,109.85,109.62,0.30697026]
[1644500050129,2.23122154,109.85,109.63,50.53911591]
[1644500050431,3.121315,109.87,109.67,0.45]
[1644500050632,3.121315,109.87,109.68,13.668]
[1644500050830,5.35253654,109.87,109.69,37.33015654]
[1644500051235,0.32287836,109.86,109.69,37.33015654]
[1644500051430,10.67,109.85,109.59,4.554]
[1644500051639,13.98191685,109.81,109.59,4.554]
[1644500051833,0.30616074,109.76,109.54,4.557]
[1644500052030,10.97616074,109.76,109.52,10.67]
[1644500052432,34.40100686,109.75,109.53,42.93180587]
[1644500052734,13.6898,109.73,109.53,42.93180587]
[1644500052931,0.30584082,109.68,109.53,42.93180587]
[1644500053131,4.561,109.67,109.53,42.93180587]
[1644500053733,18.2593,109.67,109.53,42.93180587]
[1644500054131,30.07451354,109.67,109.53,42.93180587]
[1644500054332,2.55571993,109.66,109.5,100.6435]
[1644500054735,13.7012,109.65,109.5,100.6435]
[1644500054935,0.30592205,109.62,109.5,100.6435]
[1644500055136,4.563,109.61,109.5,94.2435]
[1644500055335,0.30937288,109.59,109.51,37.20910586]
[1644500055534,0.30592205,109.62,109.51,37.20910586]
[1644500055737,11.81521354,109.64,109.51,37.20910586]
[1644500055935,4.563,109.63,109.51,37.20910586]
[1644500056138,13.7046,109.63,109.51,37.20910586]
[1644500056735,2.23122154,109.62,109.5,94.2435]
[1644500056936,4.563,109.61,109.5,94.2435]
[1644500057136,88.378438,109.6,109.5,94.2435]
[1644500057336,4.564,109.62,109.5,94.2435]
[1644500057636,112.0946,109.63,109.51,43.53601193]
[1644500057835,4.563,109.62,109.51,43.53601193]
[1644500058034,4.563,109.62,109.5,94.2435]
[1644500058035,13.7087,109.59,109.5,94.2435]
[1644500058839,45.6957,109.62,109.5,94.2435]
[1644500059036,10.67,109.63,109.44,46.7906531]
[1644500059037,0.31063878,109.57,109.44,46.7906531]
[1644500059336,23.86346919,109.61,109.44,46.2906531]
[1644500059737,4.565,109.6,109.44,46.2906531]
[1644500059938,13.7117,109.57,109.44,46.2906531]
[1644500060136,38.72486903,109.56,109.44,46.2906531]
[1644500060538,38.72486903,109.56,109.43,4.564]
[1644500060744,6.79722154,109.55,109.43,4.564]
[1644500060937,2.23122154,109.55,109.42,3.0]
[1644500061138,2.23122154,109.55,109.41,1.82799]
[1644500061139,0.32194143,109.52,109.41,1.82799]
[1644500061342,15.237,109.51,109.34,0.45711246]
[1644500061542,27.67227126,109.5,109.34,0.45711246]
[1644500061741,0.31661366,109.45,109.34,0.45711246]
[1644500061939,29.9034928,109.5,109.34,0.45711246]
[1644500061940,40.98557856,109.5,109.34,0.45711246]
[1644500062140,0.31900404,109.43,109.34,0.45711246]
[1644500062339,26.32108576,109.46,109.2,4.569]
[1644500062544,15.65108576,109.46,109.21,42.88303802]
[1644500062738,27.67227126,109.42,109.23,43.14752172]
[1644500062939,34.3111646,109.4,109.21,3.121315]
[1644500063143,15.244,109.39,109.21,3.121315]
[1644500063339,15.92685068,109.39,109.17,45.43657218]
[1644500063539,15.92685068,109.39,109.05,13.9965]
[1644500063739,15.92685068,109.39,109.03,64.86845156]
[1644500063740,0.30255604,109.34,109.07,4.575]
[1644500063942,0.45,109.22,109.03,8.121315]
[1644500064140,10.97935528,109.33,109.05,2.01315113]
[1644500064141,0.31370668,109.21,109.05,2.01315113]
[1644500064341,11.79636458,109.27,109.05,2.01315113]
[1644500064543,2.23122154,109.21,109.03,7.621315]
[1644500064741,0.31578541,109.16,108.93,252.80802726]
[1644500064942,0.31578541,109.16,109.0,3.121315]
[1644500065143,10.06275486,109.14,109.01,45.74758299]
[1644500065342,10.06275486,109.14,109.01,48.86889799]
[1644500065542,4.583,109.13,108.93,252.30802726]
[1644500065742,10.67,109.13,108.93,252.30802726]
[1644500065941,10.98860098,109.13,108.93,252.30802726]
[1644500066141,11.18303539,109.13,109.03,7.0]
[1644500066342,10.67,109.13,109.03,7.0]
[1644500066546,11.42695056,109.13,109.03,0.0001]
[1644500066743,24.98714492,109.12,109.03,0.0001]
[1644500066942,0.45,109.1,108.87,4.583]
[1644500067149,7.0,109.07,108.87,4.583]
[1644500067344,10.05579959,109.14,108.93,48.25825459]
[1644500067545,3.121315,109.09,108.93,48.25825459]
[1644500067944,15.705,109.13,108.94,28.0]
[1644500068146,10.67,109.15,108.94,32.585]
[1644500068447,3.121315,109.13,108.95,36.74001384]
[1644500068651,3.121315,109.13,108.95,41.32501384]
[1644500068848,1.5e-05,109.13,108.96,100.0]
[1644500069049,3.121315,109.13,108.95,36.74001384]
[1644500069247,10.67,109.16,108.95,36.74001384]
[1644500069448,0.30494801,109.12,108.95,36.74001384]
[1644500069648,10.67,109.11,108.95,36.74001384]
[1644500069847,4.585,109.1,108.95,36.74001384]
[1644500070047,15.66538459,109.14,108.95,36.74001384]
[1644500070250,2.23122154,109.09,108.95,36.74001384]
[1644500070449,10.67,109.08,108.95,36.74001384]
[1644500070950,2.23122154,109.07,108.95,36.72001384]
[1644500071149,10.67,109.06,108.95,36.72001384]
[1644500072149,10.67,109.07,108.95,36.72001384]
[1644500072350,10.67,109.08,108.95,36.72001384]
[1644500072550,10.67,109.09,108.95,36.72001384]
[1644500073050,10.67,109.09,108.78,46.08540965]
[1644500073051,0.3168742,109.07,108.78,46.08540965]
[1644500073253,0.3242529,109.04,108.73,40.41569035]
[1644500073474,6.5,108.8,108.73,3.121315]
[1644500073850,32.54880722,108.79,108.51,0.45]
[1644500074055,32.54880722,108.79,108.65,4.181315]
[1644500074056,2.23122154,108.73,108.65,4.181315]
[1644500074252,4.6,108.72,108.65,4.181315]
[1644500074452,4.6,108.77,108.65,0.0003]
[1644500074752,4.6,108.77,108.5,45.0]
[1644500074753,1.23092154,108.64,108.5,45.0]
[1644500074952,18.39424142,108.71,108.5,45.0]
[1644500074953,0.46044249,108.62,108.5,45.0]
[1644500075251,28.07019877,108.63,108.58,0.001315]
[1644500075451,2.23122154,108.61,108.58,3.121315]
[1644500075650,19.11938381,108.61,108.58,0.001315]
[1644500075850,0.3259113,108.6,108.58,2.121315]
[1644500076050,340.1215,108.73,108.58,2.121315]
[1644500076250,3.121315,108.73,108.59,48.63979086]
[1644500076451,2.23122154,108.76,108.59,38.13979086]
[1644500076655,2.23122154,108.72,108.5,45.0]
[1644500076851,2.23122154,108.57,108.5,0.0001]
[1644500077051,10.67,108.57,108.5,0.0001]
[1644500077252,11.84192429,108.56,108.5,0.0001]
[1644500077458,10.67,108.55,108.5,0.0001]
[1644500077853,11.84192429,108.54,108.5,0.0001]
[1644500078155,10.67,108.58,108.5,0.0001]
[1644500078354,3.121315,108.71,108.5,0.0001]
[1644500078553,0.50341446,108.7,108.5,0.0001]
[1644500078753,2.734636,108.7,108.51,0.45]
[1644500078954,3.121315,108.71,108.52,4.603]
[1644500079354,3.121315,108.71,108.52,5.053]
[1644500079552,4.469363,108.7,108.52,11.303]
[1644500079754,0.001315,108.71,108.56,0.45]
[1644500079954,4.603,108.82,108.57,80.0]
[1644500080155,14.0784,108.94,108.57,80.0]
[1644500080156,8.756206,108.81,108.57,80.32122359]
[1644500080353,6.567758,108.8,108.58,18.10490613]
[1644500080555,4.379109,108.79,108.58,18.10490613]
[1644500080757,39.6801046,108.86,108.64,0.45]
[1644500080979,3.121315,108.9,108.59,41.96198287]
[1644500080980,4.598,108.88,108.65,11.12]
[1644500081155,4.597,108.89,108.64,2.04483603]
[1644500081356,3.121315,108.9,108.64,8.04483603]
[1644500081664,4.596,108.94,108.7,0.45]
[1644500081855,34.19078974,108.92,108.7,0.45]
[1644500082054,34.19078974,108.92,108.66,34.3094541]
[1644500082055,6.616539,108.91,108.68,10.67]
[1644500082256,4.381951,108.9,108.68,6.25]
[1644500082457,7.715315,108.97,108.69,15.264]
[1644500082655,4.468564,108.96,108.75,0.45]
[1644500082857,3.121315,108.97,108.76,15.263]
[1644500083056,3.121315,108.97,108.77,49.89860827]
[1644500083355,0.30585446,108.95,108.77,39.22860827]
[1644500083557,6.82222154,108.96,108.77,39.22860827]
[1644500083760,2.23122154,108.96,108.77,39.22860827]
[1644500083956,15.261,108.95,108.77,39.22860827]
[1644500084160,52.23585314,108.94,108.77,39.22860827]
[1644500084357,55.70492734,108.94,108.77,39.22860827]
[1644500084660,0.45,108.91,108.77,39.22860827]
[1644500084858,10.67,108.9,108.77,39.22860827]
[1644500085062,15.264,108.89,108.61,4.593]
[1644500085258,0.45,108.85,108.61,3.34786172]
[1644500085458,10.67,108.85,108.59,4.598]
[1644500085659,10.67,108.85,108.59,11.12]
[1644500085859,10.67,108.85,108.6,4.598]
[1644500086061,10.67,108.85,108.61,53.08385727]
[1644500086356,10.67,108.85,108.64,0.45]
[1644500086564,4.597,108.84,108.61,59.7168342]
[1644500086763,4.597,108.84,108.64,0.45]
[1644500086959,0.45,108.88,108.64,0.45]
[1644500087161,35.86598552,108.88,108.65,0.45]
[1644500087461,35.86598552,108.88,108.65,42.41385727]
[1644500087661,35.86598552,108.88,108.66,4.597]
[1644500087860,4.596,108.87,108.67,39.77954773]
[1644500088062,4.596,108.94,108.67,40.09033792]
[1644500088261,366.20973573,108.97,108.68,17.30197693]
[1644500088483,4.594,108.96,108.73,0.45]
[1644500088663,16.80808142,109.0,108.74,5.043]
[1644500088863,47.14222469,108.96,108.74,4.593]
[1644500089062,47.14222469,108.96,108.75,44.87939752]
[1644500089265,47.14222469,108.96,108.76,4.593]
[1644500089462,47.14222469,108.96,108.77,37.31400748]
[1644500089662,0.45,109.0,108.78,11.12]
[1644500089862,3.121315,109.02,108.78,11.12]
[1644500089863,3.121315,109.02,108.8,0.45]
[1644500090062,3.571315,109.02,108.78,10.92]
[1644500090264,0.45,109.02,108.78,11.37]
[1644500090462,4.591,109.03,108.78,11.37]
[1644500090664,2.23122154,109.02,108.84,0.45]
[1644500090862,4.589,109.12,108.86,0.45]
[1644500091063,16.197554,109.11,108.86,10.67]
[1644500091264,14.030523,109.1,108.87,0.3148246]
[1644500091464,3.571315,109.14,108.87,0.3148246]
[1644500091465,4.381963,109.11,108.89,0.45]
[1644500091662,8.968963,109.13,108.88,10.67]
[1644500091867,36.69427309,109.12,108.94,4.1853721]
[1644500092065,8.966963,109.11,108.95,40.34397507]
[1644500092263,48.00019857,109.1,108.95,40.34397507]
[1644500092461,4.996,109.09,108.94,4.1853721]
[1644500092663,4.586,109.09,108.94,4.1853721]
[1644500093062,48.00019857,109.1,108.94,4.1853721]
[1644500093262,2.23122154,109.13,108.94,4.4353721]
[1644500093465,8.85177,109.12,108.96,0.45]
[1644500093765,4.381963,109.11,108.97,4.585]
[1644500093964,2.23122154,109.16,108.97,4.585]
[1644500094162,2.23122154,109.16,108.94,4.4353721]
[1644500094163,4.381963,109.15,108.95,4.583]
[1644500094367,40.12071276,109.09,108.96,39.00495479]
[1644500094568,7.46574692,109.18,108.96,39.00495479]
[1644500094766,4.381963,109.17,108.96,39.00495479]
[1644500094966,2.23122154,109.14,108.96,39.00495479]
[1644500095165,4.381963,109.13,108.96,39.00495479]
[1644500095366,4.381963,109.12,108.96,39.00495479]
[1644500095568,4.381963,109.16,108.97,10.67]
[1644500095867,2.23122154,109.21,108.97,15.203]
[1644500096073,0.41,109.23,108.97,15.5202674]
[1644500096267,0.41,109.23,109.0,0.30296143]
[1644500096468,0.41,109.26,109.01,4.582]
[1644500096666,46.17279384,109.27,109.02,47.06427151]
[1644500096870,46.17279384,109.27,109.05,0.30694763]
[1644500097067,46.17279384,109.27,109.06,15.25]
[1644500097272,46.17279384,109.27,109.07,47.87110194]
[1644500097468,46.17279384,109.27,109.08,15.25]
[1644500097667,2.23122154,109.26,109.09,39.03230306]
[1644500097868,2.23122154,109.26,109.09,49.70230306]
[1644500098068,47.00051935,109.25,109.09,49.70230306]
[1644500098268,47.00051935,109.25,109.09,49.95230306]
[1644500098469,4.989,109.31,109.09,49.95230306]
[1644500098873,4.079,109.31,109.09,49.95230306]
[1644500099073,6.80922154,109.34,109.1,4.578]
[1644500099272,469.2413781,109.42,109.1,4.578]
[1644500099273,19.483589,109.33,109.11,10.67]
[1644500099475,7.662511,109.32,109.12,38.28071745]
[1644500099772,38.82488276,109.34,109.13,10.67]
[1644500099972,2.23122154,109.31,109.14,43.90660407]
[1644500100173,2.23122154,109.31,109.1,4.578]
[1644500100174,44.92339722,109.3,109.1,4.578]
[1644500100372,0.41,109.27,109.1,4.578]
[1644500100572,4.989,109.26,109.1,4.578]
[1644500100773,0.41,109.25,109.02,4.579]
[1644500100972,4.581,109.24,109.03,10.67]
[1644500101172,40.12017578,109.23,109.04,35.65108423]
[1644500101372,40.12017578,109.23,109.04,46.32108423]
[1644500101573,29.44697,109.22,108.99,4.581]
[1644500101773,0.41,109.16,109.0,8.56577693]
[1644500101976,0.3248837,109.18,108.95,4.582]
[1644500102176,2.23122154,109.15,108.92,10.67]
[1644500102374,2.23122154,109.15,108.91,4.583]
[1644500102375,2.23122154,109.15,108.93,8.56577693]
[1644500102573,40.58094964,109.14,108.91,4.583]
[1644500102774,0.45,109.13,108.88,6.1797399]
[1644500102973,4.586,109.12,108.88,16.8497399]
[1644500103174,50.94121736,109.14,108.88,16.8497399]
[1644500103175,40.27121736,109.14,108.93,0.31663086]
[1644500103376,40.27121736,109.14,108.94,10.67]
[1644500103582,4.585,109.23,108.95,21.4347399]
[1644500103783,4.583,109.27,108.96,4.583]
[1644500103984,2.23122154,109.22,109.01,0.45]
[1644500104184,2.23122154,109.26,109.02,10.67]
[1644500104383,4.581,109.25,109.02,31.97039243]
[1644500104584,44.85744439,109.24,109.03,38.02372192]
[1644500104787,46.09541215,109.22,109.03,38.02372192]
[1644500104985,46.09541215,109.22,109.03,48.94372192]
[1644500105187,45.59541215,109.22,109.03,64.69411435]
[1644500105388,45.59541215,109.22,109.07,0.45]
[1644500105588,10.67,109.37,109.08,10.67]
[1644500105789,5.028,109.33,109.09,0.45]
[1644500105986,0.45,109.33,109.1,10.67]
[1644500106186,0.45,109.33,109.11,10.67]
[1644500106388,5.028,109.36,109.12,10.67]
[1644500106687,46.90451297,109.31,109.13,46.24208603]
[1644500106887,46.90451297,109.31,109.14,10.67]
[1644500107087,6.80822154,109.3,109.08,18.85905909]
[1644500107288,6.80822154,109.3,109.05,0.45]
[1644500107486,6.80822154,109.3,109.06,11.029]
[1644500107687,2.23122154,109.29,109.06,4.579]
[1644500107886,4.579,109.28,109.06,6.45]
[1644500108086,39.59739474,109.27,109.09,0.45]
[1644500108286,39.59739474,109.27,109.1,10.67]
[1644500108486,39.59739474,109.27,109.11,36.9684871]
[1644500108688,4.58,109.26,109.11,36.9684871]
[1644500108888,0.45,109.24,108.98,4.58]
[1644500109086,40.1312646,109.25,109.02,0.45]
[1644500109286,40.1312646,109.25,108.98,4.58]
[1644500109287,37.90004306,109.25,109.05,0.45]
[1644500109487,5.03,109.24,109.01,0.45]
[1644500109687,0.45,109.22,109.01,4.581]
[1644500109888,40.1312646,109.25,108.98,0.45]
[1644500109889,0.45,109.21,108.98,0.45]
[1644500110088,0.45,109.18,108.95,109.981]
[1644500110288,666.858957,109.17,108.95,109.981]
[1644500110490,0.45,109.16,108.92,5.033]
[1644500110690,5.035,109.15,108.92,0.45]
[1644500110890,38.31076831,109.14,108.94,0.43]
[1644500111107,47.72992344,109.12,108.94,0.45]
[1644500111308,37.45629767,109.1,108.96,46.97889275]
[1644500111505,37.45629767,109.1,108.94,4.585]
[1644500111708,37.45629767,109.1,108.94,16.25425775]
[1644500111905,11.880522,109.09,108.89,7.0]
[1644500112108,4.587,109.09,108.91,16.25425775]
[1644500112609,40.9574902,109.07,108.88,44.81442917]
[1644500112805,0.45,109.03,108.83,7.0]
[1644500113005,92.31,109.02,108.83,7.0]
[1644500113206,0.45,109.0,108.8,16.17661886]
[1644500113407,0.45,108.98,108.8,16.17661886]
[1644500113707,36.4282658,108.95,108.77,15.90014317]
[1644500113908,36.4282658,108.95,108.78,46.92590227]
[1644500114206,36.4282658,108.95,108.78,62.82604544]
[1644500114607,36.4282658,108.95,108.79,0.3143059]
[1644500114807,13.7841,109.01,108.79,0.3143059]
[1644500115007,11.12,109.03,108.79,0.3143059]
[1644500115008,28.586083,109.0,108.8,15.90014317]
[1644500115210,0.45,108.97,108.77,13.47020587]
[1644500115407,0.45,108.97,108.75,72.5459]
[1644500115607,102.983,108.96,108.75,72.5459]
[1644500115807,87.72,108.94,108.74,4.591]
[1644500116008,52.32665242,108.93,108.73,37.10429923]
[1644500116207,47.73365242,108.93,108.73,37.10429923]
[1644500116408,0.45,108.92,108.73,37.10429923]
[1644500116610,15.264,108.91,108.73,37.10429923]
[1644500116808,43.00390654,108.9,108.73,37.10429923]
[1644500117209,4.594,108.96,108.78,0.3137106]
[1644500117409,59.268837,108.95,108.74,13.69282146]
[1644500117609,59.268837,108.95,108.6,15.37157045]
[1644500117610,0.45,108.84,108.6,10.77957045]
[1644500117812,709.55034,108.83,108.62,3.77957045]
[1644500118009,709.55034,108.83,108.6,7.0]
[1644500118010,0.45,108.74,108.6,7.0]
[1644500118209,0.45,108.72,108.5,0.0001]
[1644500118409,0.45,108.7,108.5,0.0001]
[1644500118610,42.99156328,108.68,108.5,0.0001]
[1644500118811,41.66537347,108.66,108.5,0.0001]
[1644500119009,10.88205371,108.67,108.5,0.0001]
[1644500119413,6.984,108.78,108.5,0.0001]
[1644500119611,0.45,108.75,108.5,0.0001]
[1644500119811,7.0,108.69,108.51,4.602]
[1644500120011,47.20296264,108.68,108.52,39.97118173]
[1644500120211,43.21231747,108.63,108.52,39.97118173]
[1644500120415,7.0,108.64,108.52,39.97118173]
[1644500120620,0.45,108.71,108.52,39.97118173]
[1644500120812,2.23122154,108.68,108.52,39.97118173]
[1644500121013,7.0,108.64,108.52,39.97118173]
[1644500121411,41.88179336,108.63,108.52,39.97118173]
[1644500121614,7.0,108.64,108.52,39.97118173]
[1644500121814,26.96580877,108.68,108.53,9.44022323]
[1644500122011,7.0,108.62,108.52,39.97118173]
[1644500122413,24.8776,108.72,108.52,39.97118173]
[1644500122614,7.0,108.65,108.5,0.0001]
[1644500122918,695.963816,108.64,108.5,0.0001]
[1644500123113,678.019369,108.63,108.5,0.0001]
[1644500123312,11.12,108.62,108.5,0.0001]
[1644500123512,696.45163387,108.62,108.5,0.0001]
[1644500123712,11.91726487,108.62,108.5,0.0001]
[1644500123914,2.23122154,108.67,108.52,0.30440987]
[1644500124113,0.45,108.83,108.55,0.31035849]
[1644500124313,660.549208,108.82,108.55,0.31035849]
[1644500124513,660.549208,108.82,108.57,40.95444466]
[1644500124514,48.14477051,108.8,108.57,40.95444466]
[1644500124712,41.14279763,108.78,108.58,4.6]
[1644500124915,680.966845,108.77,108.52,112.8822654]
[1644500125114,0.45,108.75,108.52,98.1748]
[1644500125319,727.28772956,108.74,108.52,103.0268]
[1644500125616,0.45,108.72,108.5,0.0001]
[1644500125816,0.45,108.67,108.5,0.0001]
[1644500126014,668.629112,108.66,108.5,0.0001]
[1644500126215,714.82214506,108.65,108.5,0.0001]
[1644500126416,692.77869432,108.64,108.5,0.0001]
[1644500126616,0.45,108.54,108.5,0.0001]
[1644500126916,670.78651254,108.53,108.5,0.0001]
[1644500127118,0.30784557,108.51,108.47,0.19378479]
[1644500127318,0.19388479,108.47,108.34,0.04615101]
[1644500127520,0.30137822,108.42,108.34,0.04615101]
[1644500127726,2.38,108.38,108.34,0.04615101]
[1644500127918,0.30950987,108.4,108.34,0.04615101]
[1644500127919,16.367432,108.37,108.34,0.04615101]
[1644500128122,27.439699,108.36,108.21,23.4762]
[1644500128319,22.585631,108.35,108.2,236.04630468]
[1644500128522,15.4979176,108.37,108.24,36.0520305]
[1644500128723,16.769699,108.36,108.24,36.01370311]
[1644500128921,11.915631,108.35,108.2,236.04630468]
[1644500129122,2.68122154,108.42,108.17,4.616]
[1644500129123,2.23122154,108.36,108.17,4.616]
[1644500129322,14.122433,108.35,108.17,4.616]
[1644500129522,37.112299,108.38,108.18,44.5914061]
[1644500129722,37.165166,108.37,108.12,189.45477282]
[1644500129924,45.21231954,108.36,108.12,174.42749622]
[1644500130125,32.311098,108.35,108.12,174.42749622]
[1644500130325,20.395467,108.34,108.12,174.42749622]
[1644500130725,15.289,108.33,108.12,174.42749622]
[1644500130925,43.63875313,108.32,108.13,44.00272244]
[1644500131123,34.98961166,108.3,108.13,44.00272244]
[1644500131327,39.46163063,108.28,108.13,44.00272244]
[1644500131522,0.3192997,108.25,108.12,174.42749622]
[1644500131726,5.071,108.24,108.12,174.42749622]
[1644500131923,0.30411794,108.22,108.12,174.42749622]
[1644500132126,10.67,108.21,108.12,174.42749622]
[1644500132326,25.47129129,108.21,108.0,30.0]
[1644500132525,0.77111998,108.16,108.0,30.0]
[1644500132725,0.45,108.12,108.0,6.8862]
[1644500132925,12.343136,108.11,108.0,6.8862]
[1644500133232,40.874533,108.1,107.9,0.46321295]
[1644500133425,46.917533,108.09,107.9,0.46321295]
[1644500133627,0.45,108.07,107.9,44.65579191]
[1644500133825,129.0,108.04,107.6,0.186]
[1644500134026,0.45,107.93,107.65,7.0]
[1644500134224,23.735323,107.92,107.65,7.0]
[1644500134425,28.234253,107.91,107.65,7.0]
[1644500134726,0.45,107.89,107.65,7.0]
[1644500134926,728.845804,107.88,107.66,36.77275866]
[1644500135125,769.3411833,107.87,107.66,36.77275866]
[1644500135326,716.00772956,107.86,107.66,36.77275866]
[1644500135526,57.11705264,107.85,107.66,36.77275866]
[1644500135828,45.41773567,107.83,107.66,36.77275866]
[1644500136025,39.08372762,107.81,107.66,36.77275866]
[1644500136225,15.31,107.8,107.66,36.77275866]
[1644500136425,720.64772956,107.81,107.66,36.77275866]
[1644500136624,716.00772956,107.8,107.66,36.77275866]
[1644500136826,4.64,107.79,107.66,36.77275866]
[1644500137026,10.67,107.78,107.66,36.77275866]
[1644500137226,762.58500844,107.77,107.66,36.77275866]
[1644500137427,726.67772956,107.76,107.66,36.77275866]
[1644500137626,731.31872956,107.75,107.66,36.77275866]
[1644500137829,10.67,107.74,107.6,0.02248666]
[1644500138028,28.196116,107.73,107.62,9.60551133]
[1644500138227,28.196116,107.77,107.62,9.60551133]
[1644500138538,43.508116,107.76,107.63,47.064103]
[1644500138728,36.667345,107.75,107.63,47.064103]
[1644500139027,8.89536213,107.8,107.63,47.064103]
[1644500139226,61.069001,107.79,107.63,47.064103]
[1644500139426,2.23122154,107.77,107.63,47.064103]
[1644500139628,14.064505,107.76,107.63,47.064103]
[1644500139826,35.855289,107.8,107.63,47.064103]
[1644500140029,9.11708435,107.76,107.63,47.064103]
[1644500140230,112.057949,107.75,107.63,47.064103]
[1644500140431,127.663548,107.74,107.63,47.064103]
[1644500140628,127.663548,107.73,107.63,47.064103]
[1644500140830,17.12428332,107.76,107.63,47.064103]
[1644500141033,2.23122154,107.74,107.63,47.064103]
[1644500141233,27.71339443,107.73,107.63,47.064103]
[1644500141431,56.948183,107.73,107.6,0.02248666]
[1644500141631,56.905877,107.72,107.6,0.02248666]
[1644500141832,56.905877,107.71,107.6,0.02248666]
[1644500142030,52.905877,107.7,107.6,0.02248666]
[1644500142231,8.73495657,107.81,107.6,0.02248666]
[1644500142432,8.73495657,107.81,107.55,0.2255102]
[1644500142433,10.67,107.81,107.55,13.55498666]
[1644500142631,10.67,107.81,107.54,0.46476359]
[1644500142632,47.40879831,107.8,107.54,14.35716359]
[1644500142931,17.02890454,107.79,107.54,14.35716359]
[1644500143132,63.91833312,107.78,107.54,14.35716359]
[1644500143331,0.45,107.76,107.54,14.35716359]
[1644500143533,11.12,107.75,107.54,14.35716359]
[1644500143734,47.88946742,107.74,107.54,14.35716359]
[1644500143931,75.229327,107.73,107.54,14.35716359]
[1644500144231,89.77959482,107.72,107.54,14.35716359]
[1644500144432,54.929529,107.71,107.54,0.46476359]
[1644500144635,23.784103,107.7,107.5,17.50356359]
[1644500144836,10.67,107.69,107.5,17.50356359]
[1644500145032,11.919558,107.68,107.5,17.50356359]
[1644500145236,15.317,107.67,107.5,17.50356359]
[1644500145437,49.216571,107.66,107.5,8.0]
[1644500145636,15.317,107.65,107.29,211.14264879]
[1644500145838,0.45,107.63,107.3,8.61550417]
[1644500146042,15.322,107.62,107.3,8.61550417]
[1644500146236,44.11582448,107.62,107.3,8.61550417]
[1644500146438,66.618436,107.61,107.3,8.61550417]
[1644500146638,0.45,107.58,107.3,8.61550417]
[1644500146837,46.53167684,107.56,107.3,8.61550417]
[1644500147040,43.74868601,107.54,107.3,8.61550417]
[1644500147239,13.6968,107.66,107.32,57.0]
[1644500147438,14.0705,107.67,107.33,4.651]
[1644500147636,13.7231,107.78,107.32,57.0]
[1644500147836,7.96248048,107.8,107.34,8.45120201]
[1644500148040,7.96248048,107.8,107.53,0.45]
[1644500148237,48.69529657,107.76,107.35,234.03998432]
[1644500148442,1.93,107.82,107.36,4.648]
[1644500148639,10.67,107.75,107.36,13.09920201]
[1644500148837,25.88175851,107.81,107.36,13.09920201]
[1644500148838,25.88175851,107.81,107.37,19.12120201]
[1644500149038,10.67,107.8,107.38,22.5362]
[1644500149239,15.984008,107.79,107.39,4.647]
[1644500149438,0.30861914,107.74,107.39,4.647]
[1644500149637,0.30861914,107.74,107.38,22.41980517]
[1644500149638,0.45,107.68,107.38,22.41980517]
[1644500149837,16.045408,107.67,107.38,22.41980517]
[1644500150064,41.80558889,107.66,107.39,4.65]
[1644500150239,16.001384,107.65,107.47,0.45]
[1644500150440,52.20928093,107.64,107.46,1.29]
[1644500150642,14.057544,107.63,107.44,1.74]
[1644500150840,66.638975,107.63,107.44,1.74]
[1644500151041,67.832405,107.62,107.44,1.74]
[1644500151244,10.67,107.61,107.4,1.74]
[1644500151442,65.636086,107.6,107.37,4.648]
[1644500151643,10.67,107.59,107.37,4.648]
[1644500151845,59.14264143,107.58,107.37,4.648]
[1644500152043,15.322,107.57,107.38,0.45]
[1644500152462,10.67,107.57,107.38,0.45]
[1644500152661,10.67,107.57,107.37,5.098]
[1644500152865,10.021534,107.56,107.35,26.1614]
[1644500153063,4.652,107.55,107.38,0.45]